fUST/lending_fUST_20250718
["ID","MTS","AMOUNT","RATE_DAILY","PERIOD"]
[372986920,1752833432682,-15151.60386846,0.00022115,2]
[372986921,1752833432691,-3000.0,0.0002212,2]
[372986922,1752833432701,-848.11621568,0.0002212,2]
[372986923,1752833432711,-1182.46,0.0002212,10]
[372986924,1752833432721,-3000.0,0.0002213,2]
[372986925,1752833432731,-1702.74,0.0002213,10]
[372986926,1752833432741,-1418.95,0.0002213,10]
[372986927,1752833432751,-1175.0,0.00022139,2]
[372986928,1752833432760,-3000.0,0.0002214,2]
[372986929,1752833432773,-2043.29,0.0002214,10]
[372986930,1752833432783,-3000.0,0.0002215,2]
[372986931,1752833432793,-3000.0,0.0002216,2]
[372986932,1752833432802,-460.0,0.00022163,2]
[372986933,1752833432812,-693.53,0.00022163,2]
[372986934,1752833432822,-460.0,0.00022169,2]
[372986935,1752833432832,-460.0,0.00022169,2]
[372986936,1752833432842,-460.0,0.00022169,2]
[372986937,1752833432851,-460.0,0.00022169,2]
[372986938,1752833432861,-3000.0,0.0002217,2]
[372986939,1752833432871,-460.0,0.00022174,2]
[372986940,1752833432881,-3000.0,0.0002218,2]
[372986941,1752833432891,-814.64,0.00022185,2]
[372986942,1752833432901,-605.91,0.00022185,2]
[372986943,1752833432911,-318.27,0.00022185,2]
[372986944,1752833432921,-460.0,0.00022185,2]
[372986945,1752833432930,-1175.0,0.00022189,2]
[372986946,1752833432941,-3000.0,0.0002219,2]
[372986947,1752833432951,-3000.0,0.000222,2]
[372986948,1752833432960,-3000.0,0.0002221,2]
[372986949,1752833432970,-3000.0,0.0002222,2]
[372986950,1752833432982,-2000.0,0.00022228,4]
[372986951,1752833432991,-3000.0,0.0002223,2]
[372986952,1752833433001,-3000.0,0.0002224,2]
[372986953,1752833433011,-1175.0,0.00022249,2]
[372986954,1752833433023,-3000.0,0.0002225,2]
[372986955,1752833433033,-3000.0,0.0002226,2]
[372986956,1752833433044,-3000.0,0.0002227,2]
[372986957,1752833433054,-501.67886849,0.00022273,2]
[372986958,1752833433065,-918.16,0.00022275,3]
[372986959,1752833433075,-3000.0,0.0002228,2]
[372986960,1752833433086,-3000.0,0.0002229,2]
[372986961,1752833433096,-1175.0,0.00022299,2]
[372986962,1752833433106,-3000.0,0.000223,2]
[372986963,1752833433116,-12472.02306148,0.000223,7]
[372986964,1752833433129,-1505.25,0.000223,7]
[372986965,1752833433142,-2394.25693852,0.000223,7]
[372986966,1752833433152,-151.0,0.000223,5]
[372986967,1752833433163,-876.95935775,0.000223,7]
[372986968,1752833433175,-1074.74166481,0.000223,7]
[372986969,1752833433187,-1939.90897744,0.000223,7]
[372986970,1752833433197,-476.25663856,0.000223,7]
[372986971,1752833433208,-1175.0,0.00022309,2]
[372986972,1752833433218,-3000.0,0.0002231,2]
[372986973,1752833433229,-3000.0,0.0002232,2]
[372986974,1752833433239,-3000.0,0.0002233,2]
[372986975,1752833433252,-3000.0,0.0002234,2]
[372986976,1752833433262,-3000.0,0.0002235,2]
[372986977,1752833433274,-3000.0,0.0002236,2]
[372986978,1752833433285,-460.0,0.00022365,2]
[372986979,1752833433299,-1175.0,0.00022369,2]
[372986980,1752833433309,-3000.0,0.0002237,2]
[372986981,1752833433470,-3000.0,0.0002238,2]
[372986982,1752833433481,-291.07870377,0.00022386,2]
[372986983,1752833433491,-3000.0,0.0002239,2]
[372986984,1752833433503,-1000.0,0.00022396,6]
[372986985,1752833433513,-3000.0,0.000224,2]
[372986986,1752833433525,-3000.0,0.0002241,2]
[372986987,1752833433535,-3000.0,0.0002242,2]
[372986988,1752833433545,-1000.0,0.00022428,6]
[372986989,1752833433555,-3000.0,0.0002243,2]
[372986990,1752833433566,-6047.18281017,0.0002243,2]
[372986991,1752833433576,-460.0,0.00022437,2]
[372986992,1752833433586,-693.53,0.00022437,2]
[372986993,1752833433595,-1175.0,0.00022439,2]
[372986994,1752833433605,-3000.0,0.0002244,2]
[372986995,1752833433615,-460.0,0.00022443,2]
[372986996,1752833433625,-460.0,0.00022443,2]
[372986997,1752833433635,-460.0,0.00022443,2]
[372986998,1752833433645,-460.0,0.00022443,2]
[372986999,1752833433655,-460.0,0.00022448,2]
[372987000,1752833433665,-459.08,0.00022449,3]
[372987001,1752833433674,-3000.0,0.0002245,2]
[372987002,1752833433684,-814.64,0.00022459,2]
[372987003,1752833433694,-605.91,0.00022459,2]
[372987004,1752833433704,-460.0,0.00022459,2]
[372987005,1752833433714,-3000.0,0.0002246,2]
[372987006,1752833433724,-3000.0,0.0002247,2]
[372987007,1752833433733,-12500.0,0.00022472,7]
[372987008,1752833433743,-3000.0,0.0002248,2]
[372987009,1752833433753,-12500.0,0.00022481,7]
[372987010,1752833433763,-1175.0,0.00022489,2]
[372987011,1752833433774,-1314.6661332,0.0002249,2]
[372987012,1752833433787,-1685.3338668,0.0002249,2]
[372987013,1752833433797,-12500.0,0.0002249,7]
[372987014,1752833433806,-3000.0,0.000225,2]
[372987015,1752833433816,-12500.0,0.00022504,7]
[372987016,1752833433826,-6047.18281017,0.00022506,2]
[372987017,1752833433844,-3000.0,0.0002251,2]
[372987018,1752833433858,-1175.0,0.00022512,2]
[372987019,1752833433868,-12500.0,0.00022512,7]
[372987020,1752833433879,-3000.0,0.0002252,2]
[372987021,1752833433890,-1175.0,0.0002252,2]
[372987022,1752833433901,-2857.48332303,0.00022521,7]
[372987040,1752833437764,-9642.51667697,0.00022521,7]
[372987042,1752833437775,-1175.0,0.00022529,2]
[372987044,1752833437785,-1175.0,0.00022529,2]
[372987045,1752833437795,-1175.0,0.00022529,2]
[372987047,1752833437804,-1175.0,0.00022529,2]
[372987049,1752833437814,-1175.0,0.00022529,2]
[372987051,1752833437823,-12500.0,0.0002253,7]
[372987053,1752833437833,-3000.0,0.0002253,2]
[372987055,1752833437842,-3140.666109,0.0002254,2]
[372987056,1752833437852,-389.20231297,0.00022573,2]
[372987058,1752833437861,-500.0,0.00022573,2]
[372987060,1752833437871,-151.0,0.000226,9]
[372987062,1752833437881,-460.0,0.00022711,2]
[372987064,1752833437892,-693.53,0.00022711,2]
[372987066,1752833437902,-460.0,0.00022717,2]
[372987068,1752833437911,-460.0,0.00022717,2]
[372987069,1752833437920,-460.0,0.00022717,2]
[372987071,1752833437930,-460.0,0.00022717,2]
[372987073,1752833437939,-380.47,0.00022722,2]
[372987075,1752833437949,-814.64,0.00022733,2]
[372987077,1752833437959,-605.91,0.00022733,2]
[372987079,1752833437968,-460.0,0.00022733,2]
[372987081,1752833437978,-848.11621568,0.0002279,2]
[372987082,1752833437988,-151.0,0.000229,7]
[372987084,1752833437997,-6047.18281017,0.00022974,2]
[372987086,1752833438007,-460.0,0.00022985,2]
[372987088,1752833438016,-693.53,0.00022985,2]
[372987089,1752833438027,-460.0,0.00022991,2]
[372987091,1752833438037,-460.0,0.00022991,2]
[372987093,1752833438046,-460.0,0.00022991,2]
[372987095,1752833438056,-460.0,0.00022991,2]
[372987097,1752833438065,-814.64,0.00023007,2]
[372987098,1752833438074,-605.91,0.00023007,2]
[372987100,1752833438084,-460.0,0.00023007,2]
[372987102,1752833438094,-151.0,0.00023119,7]
[372987104,1752833438103,-151.0,0.00023119,7]
[372987106,1752833438113,-151.0,0.00023119,7]
[372987108,1752833438122,-1000.0,0.00023121,2]
[372987109,1752833438131,-291.07870377,0.00023134,2]
[372987111,1752833438141,-6047.18281017,0.00023141,2]
[372987113,1752833438150,-160.0,0.00023183,2]
[372987115,1752833438159,-151.0,0.000232,5]
[372987117,1752833438169,-1778.99,0.000232,7]
[372987119,1752833438178,-207.765084,0.000232,7]
[372987120,1752833438187,-207.765084,0.000232,7]
[372987122,1752833438196,-151.0,0.000232,7]
[372987124,1752833438206,-151.156413,0.000232,7]
[372987126,1752833438214,-472.66,0.00023259,2]
[372987128,1752833438224,-693.53,0.00023259,2]
[372987129,1752833438233,-460.0,0.00023265,2]
[372987131,1752833438247,-442.40829738,0.00023265,2]
[372987133,1752833438256,-344.91050401,0.00023265,2]
[372987136,1752833438268,-115.08949599,0.00023265,2]
[372987138,1752833438280,-460.0,0.00023265,2]
[372987139,1752833438291,-814.64,0.00023281,2]
[372987140,1752833438300,-605.91,0.00023281,2]
[372987141,1752833438309,-460.0,0.00023281,2]
[372987142,1752833438320,-5826.57118734,0.0002337,2]
[372987143,1752833438332,-220.61162283,0.0002337,2]
[372987144,1752833438342,-280.9540833,0.0002346,2]
[372987145,1752833438354,-567.16213238,0.0002346,2]
[372987146,1752833438363,-16371.53,0.000235,7]
[372987147,1752833438373,-151.0,0.000235,8]
[372987148,1752833438382,-151.0,0.000235,7]
[372987149,1752833438391,-151.0,0.000235,7]
[372987150,1752833438401,-693.53,0.00023533,2]
[372987151,1752833438411,-460.0,0.00023539,2]
[372987152,1752833438420,-460.0,0.00023539,2]
[372987153,1752833438430,-460.0,0.00023539,2]
[372987154,1752833438439,-151.0,0.00023551,2]
[372987155,1752833438449,-500.0,0.00023551,2]
[372987156,1752833438459,-500.0,0.00023551,2]
[372987157,1752833438469,-814.64,0.00023555,2]
[372987158,1752833438478,-605.91,0.00023555,2]
[372987159,1752833438488,-460.0,0.00023555,2]
[372987160,1752833438498,-150.92781,0.00023586,2]
[372987161,1752833438508,-3891.61,0.000236,7]
[372987162,1752833438517,-1535.44548733,0.00023668,2]
[372987163,1752833438529,-260.0,0.00023731,2]
[372987164,1752833438539,-8693.83215171,0.0002374,2]
[372987165,1752833438551,-6457.77171674,0.0002374,2]
[372987166,1752833438560,-253.85683132,0.00023762,2]
[372987188,1752833440042,-4164.42490134,0.00023762,2]
[372987190,1752833440054,-1628.90107751,0.00023762,2]
[372987192,1752833440063,-163.577261,0.00023789,7]
[372987194,1752833440073,-163.577261,0.00023789,7]
[372987196,1752833440083,-151.0,0.00023789,7]
[372987198,1752833440093,-151.0,0.00023789,7]
[372987200,1752833440102,-151.0,0.00023792,7]
[372987202,1752833440111,-151.0,0.00023792,7]
[372987204,1752833440120,-207.4,0.00023792,2]
[372987206,1752833440130,-151.0,0.00023792,2]
[372987208,1752833440139,-151.0,0.00023792,2]
[372987209,1752833440148,-151.0,0.00023792,2]
[372987211,1752833440158,-151.0,0.00023792,2]
[372987213,1752833440168,-151.0,0.00023792,2]
[372987215,1752833440177,-151.0,0.00023792,2]
[372987217,1752833440187,-151.0,0.00023792,2]
[372987219,1752833440198,-151.0,0.00023792,2]
[372987221,1752833440207,-151.0,0.00023792,2]
[372987223,1752833440217,-151.0,0.00023792,2]
[372987225,1752833440226,-151.0,0.00023792,2]
[372987226,1752833440235,-151.0,0.00023792,2]
[372987228,1752833440247,-151.0,0.00023792,2]
[372987230,1752833440258,-151.0,0.00023792,2]
[372987232,1752833440267,-151.0,0.00023792,2]
[372987234,1752833440279,-151.0,0.00023792,2]
[372987236,1752833440289,-4390.67983836,0.00023792,2]
[372987239,1752833440301,-14266.80284074,0.00023792,2]
[372987241,1752833440312,-767.5339905,0.00023792,2]
[372987243,1752833440323,-700.51359987,0.00023792,2]
[372987245,1752833440335,-4874.46973053,0.00023792,2]
[372987247,1752833440345,-151.0,0.00023792,2]
[372987248,1752833440354,-151.0,0.00023792,2]
[372987250,1752833440363,-151.0,0.00023792,2]
[372987252,1752833440373,-151.0,0.00023792,2]
[372987254,1752833440382,-151.0,0.000238,8]
[372987256,1752833440391,-693.53,0.00023807,2]
[372987258,1752833440401,-460.0,0.00023813,2]
[372987260,1752833440410,-460.0,0.00023813,2]
[372987262,1752833440421,-460.0,0.00023813,2]
[372987264,1752833440430,-245.0,0.00023825,2]
[372987266,1752833440440,-500.0,0.00023825,2]
[372987268,1752833440451,-500.0,0.00023825,2]
[372987270,1752833440460,-814.64,0.00023829,2]
[372987272,1752833440470,-605.91,0.00023829,2]
[372987274,1752833440479,-460.0,0.00023829,2]
[372987275,1752833440489,-6047.18281017,0.00023836,2]
[372987277,1752833440498,-500.0,0.00023845,2]
[372987279,1752833440509,-313.0,0.00023863,11]
[372987281,1752833440519,-291.07870377,0.00023882,2]
[372987283,1752833440530,-150.92781,0.00023887,7]
[372987285,1752833440540,-450.66523268,0.000239,2]
[372987287,1752833440549,-230.89969799,0.00024,7]
[372987289,1752833440559,-525.75194068,0.00024,7]
[372987291,1752833440568,-160.0,0.00024,7]
[372987293,1752833440577,-693.53,0.00024081,2]
[372987295,1752833440586,-460.0,0.00024087,2]
[372987297,1752833440596,-460.0,0.00024087,2]
[372987299,1752833440605,-460.0,0.00024087,2]
[372987300,1752833440614,-500.0,0.00024099,2]
[372987302,1752833440623,-500.0,0.00024099,2]
[372987304,1752833440633,-151.0,0.000241,8]
[372987306,1752833440642,-814.64,0.00024103,2]
[372987308,1752833440651,-605.91,0.00024103,2]
[372987310,1752833440660,-460.0,0.00024103,2]
[372987312,1752833440669,-2525.1503023,0.00024109,2]
[372987314,1752833440678,-848.11621568,0.0002413,2]
[372987315,1752833440688,-168.0,0.00024191,2]
[372987317,1752833440698,-215.63268315,0.000242,7]
[372987319,1752833440707,-2525.1503023,0.00024209,2]
[372987321,1752833440717,-250.42992241,0.00024249,2]
[372987323,1752833440726,-380.0,0.00024279,2]
[372987325,1752833440735,-6047.18281017,0.00024282,2]
[372987327,1752833440745,-2525.1503023,0.00024309,2]
[372987329,1752833440755,-151.0,0.0002434,7]
[372987331,1752833440764,-207.765084,0.0002434,7]
[372987332,1752833440775,-151.0,0.0002434,7]
[372987334,1752833440785,-207.765084,0.0002434,7]
[372987336,1752833440794,-151.0,0.0002434,7]
[372987338,1752833440804,-151.0,0.0002434,7]
[372987340,1752833440814,-25000.0,0.0002434,2]
[372987342,1752833440823,-800.0,0.00024355,2]
[372987344,1752833440833,-693.53,0.00024355,2]
[372987345,1752833440843,-460.0,0.00024361,2]
[372987347,1752833440854,-219.14,0.00024361,2]
[372987349,1752833440864,-460.0,0.00024361,2]
[372987351,1752833440874,-150.0,0.00024373,2]
[372987353,1752833440883,-500.0,0.00024373,2]
[372987355,1752833440893,-500.0,0.00024373,2]
[372987357,1752833440902,-814.64,0.00024377,2]
[372987358,1752833440911,-605.91,0.00024377,2]
[372987359,1752833440921,-210.70898298,0.00024377,2]
[372987360,1752833440931,-215.63268315,0.000244,3]
[372987362,1752833440940,-151.0,0.000244,7]
[372987364,1752833440950,-42916.39,0.000244,2]
[372987365,1752833440959,-151.0,0.000244,7]
[372987366,1752833440969,-211.613169,0.000244,7]
[372987367,1752833440978,-151.0,0.000244,7]
[372987368,1752833440987,-151.0,0.000244,7]
[372987369,1752833440996,-151.0,0.000244,7]
[372987370,1752833441006,-151.0,0.000244,7]
[372987371,1752833441016,-151.0,0.000244,7]
[372987372,1752833441027,-151.804347,0.000244,7]
[372987373,1752833441036,-279.256129,0.000244,7]
[372987374,1752833441045,-151.0,0.000244,7]
[372987375,1752833441061,-166.016754,0.000244,7]
[372987376,1752833441070,-653.531369,0.000244,7]
[372987377,1752833441079,-653.531369,0.000244,7]
[372987378,1752833441088,-160.0,0.000244,3]
[372987379,1752833441098,-12610.43989422,0.000244,3]
[372987380,1752833441107,-476.25663856,0.000244,3]
[372987381,1752833441117,-230.89969799,0.000244,3]
[372987382,1752833441126,-525.75194068,0.000244,3]
[372987383,1752833441135,-160.0,0.000244,3]
[372987384,1752833441145,-839.30593155,0.000244,3]
[372987385,1752833441154,-2525.1503023,0.00024409,2]
[372987386,1752833441163,-163.98184822,0.00024438,2]
[372987387,1752833441174,-330.20637041,0.0002444,2]
[372987388,1752833441183,-150.92781,0.0002445,3]
[372987389,1752833441192,-168.0,0.00024467,2]
[372987390,1752833441202,-961.60473553,0.00024468,2]
[372987391,1752833441211,-150.92781,0.00024475,7]
[372987392,1752833441221,-163.577261,0.00024481,7]
[372987393,1752833441230,-163.577261,0.00024481,7]
[372987394,1752833441239,-151.0,0.00024481,7]
[372987395,1752833441253,-151.0,0.00024481,7]
[372987396,1752833441262,-1778.99,0.000245,7]
[372987397,1752833441271,-150.92781,0.000245,3]
[372987398,1752833441282,-150.92781,0.00024502,8]
[372987399,1752833441292,-2525.1503023,0.00024509,2]
[372987400,1752833441302,-6047.18281025,0.00024522,2]
[372987401,1752833441312,-233.5810633,0.00024542,2]
[372987402,1752833441321,-153.0,0.00024542,2]
[372987403,1752833441331,-153.0,0.00024542,2]
[372987404,1752833441341,-153.0,0.00024542,2]
[372987405,1752833441350,-150.92781,0.0002455,3]
[372987406,1752833441359,-16371.53,0.000246,7]
[372987407,1752833441369,-150.92781,0.000246,3]
[372987408,1752833441379,-2525.1503023,0.00024609,2]
[372987409,1752833441388,-693.53,0.00024629,2]
[372987410,1752833441397,-150.92781,0.0002463,2]
[372987411,1752833441407,-291.07870377,0.00024631,2]
[372987412,1752833441417,-460.0,0.00024635,2]
[372987413,1752833441427,-460.0,0.00024635,2]
[372987414,1752833441437,-500.0,0.00024647,2]
[372987415,1752833441446,-500.0,0.00024647,2]
[372987416,1752833441456,-814.64,0.00024651,2]
[372987417,1752833441465,-605.91,0.00024651,2]
[372987418,1752833441475,-380.0,0.00024658,2]
[372987419,1752833441485,-500.0,0.00024658,2]
[372987420,1752833441495,-151.0,0.00024658,2]
[372987421,1752833441505,-151.0,0.00024658,2]
[372987422,1752833441514,-521.0,0.00024658,2]
[372987423,1752833441524,-168.0,0.00024685,2]
[372987424,1752833441534,-151.0,0.000247,5]
[372987425,1752833441543,-2525.1503023,0.00024709,2]
[372987426,1752833441553,-796.39,0.000248,2]
[372987427,1752833441562,-848.11621568,0.000248,2]
[372987428,1752833441572,-39124.7991019,0.000248,2]
[372987429,1752833441582,-429.318869,0.00024805,2]
[372987430,1752833441591,-429.318869,0.00024805,2]
[372987431,1752833441601,-429.318869,0.00024805,2]
[372987432,1752833441611,-429.318869,0.00024805,2]
[372987433,1752833441621,-429.318869,0.00024805,2]
[372987434,1752833441631,-150.92781,0.00024805,4]
[372987435,1752833441642,-2525.1503023,0.00024809,2]
[372987436,1752833441651,-800.0,0.0002483,2]
[372987437,1752833441663,-2445.29994387,0.00024863,2]
[372987438,1752833441674,-500.0,0.00024873,2]
[372987439,1752833441684,-4870.31120904,0.00024874,2]
[372987440,1752833441694,-1222.44811346,0.00024874,2]
[372987441,1752833441704,-4619.31525862,0.00024874,2]
[372987442,1752833441716,-151.0,0.00024888,7]
[372987443,1752833441725,-207.765084,0.00024888,7]
[372987444,1752833441736,-151.0,0.00024888,7]
[372987445,1752833441745,-207.765084,0.00024888,7]
[372987446,1752833441755,-151.0,0.00024888,7]
[372987447,1752833441765,-151.0,0.00024888,7]
[372987448,1752833441776,-25000.0,0.00024888,2]
[372987449,1752833441786,-2445.29994387,0.0002489,2]
[372987450,1752833441796,-6859.56315972,0.000249,2]
[372987451,1752833441806,-151.0,0.000249,7]
[372987452,1752833441816,-151.0,0.000249,7]
[372987453,1752833441826,-151.0,0.000249,7]
[372987454,1752833441836,-151.0,0.000249,7]
[372987455,1752833441846,-151.0,0.000249,7]
[372987456,1752833441855,-151.0,0.000249,7]
[372987457,1752833441865,-530.47071702,0.000249,3]
[372987458,1752833441875,-151.0,0.000249,7]
[372987459,1752833441885,-151.0,0.000249,7]
[372987460,1752833441894,-388.662643,0.000249,7]
[372987461,1752833441904,-151.470043,0.000249,7]
[372987462,1752833441913,-388.662643,0.000249,7]
[372987463,1752833441923,-2243.779072,0.000249,7]
[372987464,1752833441933,-160.0,0.000249,3]
[372987465,1752833441943,-163.46291953,0.000249,3]
[372987466,1752833441953,-160.0,0.000249,3]
[372987467,1752833441962,-160.0,0.000249,3]
[372987468,1752833441972,-157.47054806,0.000249,3]
[372987469,1752833441981,-151.0,0.000249,7]
[372987470,1752833441991,-151.0,0.000249,7]
[372987471,1752833442000,-323.507402,0.000249,7]
[372987472,1752833442010,-323.507402,0.000249,7]
[372987473,1752833442021,-151.0,0.000249,7]
[372987474,1752833442032,-210.822047,0.000249,7]
[372987475,1752833442041,-210.822047,0.000249,7]
[372987476,1752833442051,-326.692213,0.000249,7]
[372987477,1752833442061,-326.692213,0.000249,7]
[372987478,1752833442071,-151.0,0.000249,7]
[372987479,1752833442080,-151.0,0.000249,7]
[372987480,1752833442090,-151.0,0.000249,7]
[372987481,1752833442099,-151.0,0.000249,7]
[372987482,1752833442210,-189.395916,0.000249,7]
[372987483,1752833442220,-189.395916,0.000249,7]
[372987485,1752833442230,-163.577261,0.000249,7]
[372987486,1752833442241,-163.577261,0.000249,7]
[372987487,1752833442252,-151.0,0.000249,7]
[372987488,1752833442262,-151.0,0.000249,7]
[372987489,1752833442275,-151.0,0.000249,7]
[372987490,1752833442284,-285.623926,0.000249,7]
[372987491,1752833442294,-151.0,0.000249,7]
[372987492,1752833442303,-151.0,0.000249,7]
[372987493,1752833442313,-151.0,0.000249,7]
[372987494,1752833442325,-653.531369,0.000249,7]
[372987495,1752833442335,-653.531369,0.000249,7]
[372987496,1752833442345,-1973.524237,0.000249,2]
[372987497,1752833442354,-171.084593,0.000249,7]
[372987499,1752833442364,-10006.09326177,0.000249,2]
[372987501,1752833442373,-3744.93353667,0.000249,2]
[372987503,1752833442383,-507131.83342797,0.000249,2]
[372987506,1752833442401,-2950.89403965,0.000249,2]
[372987516,1752833442613,-35720.99999998,0.000249,2]
[372987517,1752833442625,-715.6763441,0.000249,2]
[372987518,1752833442636,-3072.59983121,0.000249,2]
[372987519,1752833442648,-770.67,0.000249,2]
[372987520,1752833442659,-6503.92557072,0.000249,2]
[372987521,1752833442671,-304.2614001,0.000249,2]
[372987522,1752833442683,-7340.20665627,0.000249,2]
[372987523,1752833442695,-28097.46133492,0.000249,2]
[372987546,1752833443015,-900.58507329,0.00024367,10]
[372987548,1752833443030,-84.79492671,0.00024367,10]
[372987550,1752833443040,-1322.38040882,0.000249,2]
[372987552,1752833443052,-1134.70122693,0.000249,2]
[372987603,1752833445855,-460.0,0.00020246,2]
[372987606,1752833445865,-460.0,0.0002052,2]
[372987608,1752833445875,-460.0,0.00020793,2]
[372987610,1752833445885,-154.11700291,0.00021429,2]
[372987612,1752833445895,-3157.72481283,0.000249,2]
[372987614,1752833445907,-1076.74838715,0.000249,2]
[372987617,1752833445919,-4993.89045212,0.000249,2]
[372987620,1752833445930,-19275.48376366,0.000249,2]
[372987656,1752833709178,306.759375,0.00013699,2]
[372987657,1752833827902,3531.0,0.00027397,120]
[372987660,1752834356108,-179.083348,0.00019226,2]
[372987661,1752834356130,-300.0,0.00019999,2]
[372987662,1752834356152,-300.0,0.00019999,2]
[372987663,1752834356176,-300.0,0.00019999,2]
[372987664,1752834356198,-1076.0,0.00019999,2]
[372987665,1752834356221,-300.0,0.00019999,2]
[372987666,1752834356243,-160.0,0.0002,2]
[372987667,1752834356265,-156.84073798,0.0002,2]
[372987671,1752834436097,-1489.79567984,0.0002,2]
[372987672,1752834445095,-1234.74552512,0.0002,2]
[372987673,1752834453078,-186.40602139,0.0002,2]
[372987679,1752834509042,-300.33856174,0.000176,2]
[372987681,1752834510670,-192.98194385,0.000176,2]
[372987695,1752834545149,-32454.72827552,0.00017,2]
[372987696,1752834545170,-1589.87800573,0.000176,2]
[372987697,1752834545192,-17992.44201131,0.00018,2]
[372987706,1752834548079,-21163.0475884,0.00018,2]
[372987707,1752834548100,-387.84777042,0.00019116,2]
[372987708,1752834548121,-178.3357047,0.00019216,2]
[372987709,1752834548144,-659.20022025,0.000199,2]
[372987710,1752834548164,-4639.54042305,0.0001999,2]
[372987711,1752834548184,-3849.61650179,0.0002,2]
[372987712,1752834548204,-150.58450334,0.0002,7]
[372987713,1752834548229,-659.20022017,0.00020107,2]
[372987714,1752834548250,-306.759375,0.00020187,2]
[372987715,1752834548272,-287.92,0.00020208,3]
[372987716,1752834548293,-160.0,0.00020217,2]
[372987717,1752834548313,-228.96777869,0.00020217,2]
[372987718,1752834548334,-500.0,0.00020217,2]
[372987719,1752834548355,-500.0,0.00020217,2]
[372987720,1752834548375,-500.0,0.00020217,2]
[372987721,1752834548397,-500.0,0.00020217,2]
[372987722,1752834548420,-500.0,0.00020217,2]
[372987723,1752834548441,-251.32504391,0.00020217,2]
[372987724,1752834548463,-512.35111975,0.00020217,2]
[372987725,1752834548484,-500.0,0.00020217,2]
[372987726,1752834548508,-500.0,0.00020217,2]
[372987727,1752834548531,-445.98479057,0.00020217,2]
[372987728,1752834548556,-500.0,0.00020217,2]
[372987729,1752834548579,-547.43288846,0.00020217,2]
[372987730,1752834548602,-500.0,0.00020217,2]
[372987731,1752834548623,-500.0,0.00020217,2]
[372987732,1752834548644,-223.86467968,0.00020217,2]
[372987733,1752834548665,-140.132243,0.00020217,2]
[372987749,1752834601034,150.0,0.00015883,2]
[372987831,1752834633767,-460.0,0.00017999,2]
[372987832,1752834633778,-460.0,0.00017999,2]
[372987833,1752834633790,-174.31536871,0.00017999,2]
[372987834,1752834633800,-460.0,0.00018273,2]
[372987835,1752834633810,-460.0,0.00018273,2]
[372987836,1752834633820,-460.0,0.00018273,2]
[372987837,1752834633830,-460.0,0.00018547,2]
[372987839,1752834633840,-460.0,0.00018547,2]
[372987840,1752834633850,-460.0,0.00018821,2]
[372987841,1752834633860,-3007.8648818,0.0001922,2]
[372987842,1752834633869,-160.0,0.00019897,2]
[372987843,1752834633879,-403.97698894,0.00020118,2]
[372987844,1752834633890,-12610.43989422,0.00020216,2]
[372987845,1752834633900,-215.63268315,0.00020216,2]
[372987846,1752834633910,-476.25663856,0.00020216,2]
[372987847,1752834633920,-525.75194068,0.00020217,2]
[372987848,1752834633930,-160.0,0.00020217,2]
[372987849,1752834633939,-839.30593155,0.00020217,2]